[Event "Late-Titled-Tuesday-Blitz-September-12-2023"]
[Site "Chess.com"]
[Date "2023.09.12"]
[Round "5"]
[White "Firouzja2003"]
[Black "Zkid"]
[Result "1/2-1/2"]
[WhiteElo "3075"]
[BlackElo "2921"]
[TimeControl "180+1"]
[EndTime "14:53:17 PDT"]
[Termination "Game drawn by repetition"]

1. d4 {[%clk 0:01:46.9]} 1... d5 {[%clk 0:02:59.2]} 2. c4 {[%clk 0:01:41.9]}
2... dxc4 {[%clk 0:03:00.1]} 3. Nf3 {[%clk 0:01:40.9]} 3... Nf6 {[%clk
0:03:00.4]} 4. e3 {[%clk 0:01:40.4]} 4... e6 {[%clk 0:03:01]} 5. Bxc4 {[%clk
0:01:39.5]} 5... c5 {[%clk 0:03:01.4]} 6. O-O {[%clk 0:01:39]} 6... a6 {[%clk
0:03:02]} 7. Re1 {[%clk 0:01:37.6]} 7... b5 {[%clk 0:02:58.3]} 8. Bf1 {[%clk
0:01:33.4]} 8... Bb7 {[%clk 0:02:58.4]} 9. a4 {[%clk 0:01:33.2]} 9... b4 {[%clk
0:02:58]} 10. Nbd2 {[%clk 0:01:31.1]} 10... Nbd7 {[%clk 0:02:55.6]} 11. e4
{[%clk 0:01:25.7]} 11... cxd4 {[%clk 0:02:51.9]} 12. e5 {[%clk 0:01:26]} 12...
Nd5 {[%clk 0:02:51.1]} 13. Ne4 {[%clk 0:01:21.4]} 13... h6 {[%clk 0:02:31.3]}
14. Nxd4 {[%clk 0:01:15.9]} 14... Nc5 {[%clk 0:02:23.2]} 15. Ng3 {[%clk
0:00:49.3]} 15... Be7 {[%clk 0:02:16]} 16. Bd2 {[%clk 0:00:44.7]} 16... Rc8
{[%clk 0:02:01.8]} 17. Rc1 {[%clk 0:00:44.6]} 17... Bg5 {[%clk 0:01:45.7]} 18.
Bxg5 {[%clk 0:00:36.8]} 18... Qxg5 {[%clk 0:01:29.9]} 19. Rxc5 {[%clk
0:00:32.8]} 19... Rxc5 {[%clk 0:01:30.8]} 20. Ne4 {[%clk 0:00:33.2]} 20... Qe7
{[%clk 0:01:30.4]} 21. Nxc5 {[%clk 0:00:24.7]} 21... Qxc5 {[%clk 0:01:31.3]} 22.
Nb3 {[%clk 0:00:23.6]} 22... Qc7 {[%clk 0:01:25.9]} 23. Qc1 {[%clk 0:00:23.7]}
23... Qxc1 {[%clk 0:01:13]} 24. Rxc1 {[%clk 0:00:24.6]} 24... Ke7 {[%clk
0:01:12.7]} 25. Na5 {[%clk 0:00:24]} 25... Rc8 {[%clk 0:00:58.3]} 26. Rxc8
{[%clk 0:00:23.6]} 26... Bxc8 {[%clk 0:00:59.2]} 27. Bc4 {[%clk 0:00:20.4]}
27... Nb6 {[%clk 0:00:53.1]} 28. b3 {[%clk 0:00:07.9]} 28... Nxc4 {[%clk
0:00:37.2]} 29. Nxc4 {[%clk 0:00:08.8]} 29... Bb7 {[%clk 0:00:33.9]} 30. Nb6
{[%clk 0:00:06.6]} 30... Kd8 {[%clk 0:00:32.3]} 31. f3 {[%clk 0:00:06.9]} 31...
Kc7 {[%clk 0:00:31.7]} 32. a5 {[%clk 0:00:07.4]} 32... Kc6 {[%clk 0:00:26.5]}
33. Kf2 {[%clk 0:00:07.6]} 33... Kc5 {[%clk 0:00:18.7]} 34. Ke3 {[%clk
0:00:07.7]} 34... Bd5 {[%clk 0:00:19.1]} 35. Nxd5 {[%clk 0:00:04.8]} 35... Kxd5
{[%clk 0:00:20]} 36. f4 {[%clk 0:00:05.3]} 36... h5 {[%clk 0:00:17.3]} 37. g3
{[%clk 0:00:04.8]} 37... f6 {[%clk 0:00:10.8]} 38. exf6 {[%clk 0:00:04.5]} 38...
gxf6 {[%clk 0:00:11.7]} 39. h3 {[%clk 0:00:04.6]} 39... f5 {[%clk 0:00:11.1]}
40. Kd3 {[%clk 0:00:05]} 40... Kc5 {[%clk 0:00:11.1]} 41. Ke3 {[%clk 0:00:05.7]}
41... Kd5 {[%clk 0:00:11.5]} 42. Kd3 {[%clk 0:00:06.2]} 42... Kc5 {[%clk
0:00:08.6]} 43. Ke3 {[%clk 0:00:06.7]} 43... Kd5 {[%clk 0:00:07.4]} 1/2-1/2

[Event "Late-Titled-Tuesday-Blitz-September-12-2023"]
[Site "Chess.com"]
[Date "2023.09.12"]
[Round "5"]
[White "szachmistrz2500"]
[Black "IMRosen"]
[Result "1-0"]
[WhiteElo "2463"]
[BlackElo "2597"]
[TimeControl "180+1"]
[EndTime "14:53:19 PDT"]
[Termination "szachmistrz2500 won by resignation"]

1. Nf3 {[%clk 0:03:00.9]} 1... d5 {[%clk 0:02:57.7]} 2. g3 {[%clk 0:03:01]} 2...
Nf6 {[%clk 0:02:58]} 3. Bg2 {[%clk 0:03:01.1]} 3... e6 {[%clk 0:02:58.3]} 4. O-O
{[%clk 0:03:01.4]} 4... Be7 {[%clk 0:02:58.9]} 5. d3 {[%clk 0:03:02]} 5... O-O
{[%clk 0:02:58.4]} 6. Nbd2 {[%clk 0:03:02.5]} 6... b6 {[%clk 0:02:58.9]} 7. e4
{[%clk 0:03:02.8]} 7... dxe4 {[%clk 0:02:59.8]} 8. dxe4 {[%clk 0:02:58.6]} 8...
Bb7 {[%clk 0:02:59.4]} 9. Re1 {[%clk 0:02:57.2]} 9... Nc6 {[%clk 0:02:59]} 10.
c3 {[%clk 0:02:50.8]} 10... Qc8 {[%clk 0:02:58]} 11. Qc2 {[%clk 0:02:41.8]}
11... Rd8 {[%clk 0:02:57.8]} 12. Nc4 {[%clk 0:02:36.6]} 12... a5 {[%clk
0:02:55.8]} 13. a4 {[%clk 0:02:35.6]} 13... Nd7 {[%clk 0:02:55.9]} 14. Bf4
{[%clk 0:02:22.7]} 14... Nc5 {[%clk 0:02:55.2]} 15. Rad1 {[%clk 0:02:19.3]}
15... Ba6 {[%clk 0:02:50.8]} 16. Bf1 {[%clk 0:02:17.9]} 16... Rxd1 {[%clk
0:02:41.6]} 17. Rxd1 {[%clk 0:02:16.5]} 17... Qe8 {[%clk 0:02:42.1]} 18. Bxc7
{[%clk 0:02:11.3]} 18... b5 {[%clk 0:01:19.7]} 19. axb5 {[%clk 0:01:58.6]} 19...
Bxb5 {[%clk 0:01:19.8]} 20. Nd6 {[%clk 0:01:38.5]} 20... Bxd6 {[%clk 0:01:09.8]}
21. Bxd6 {[%clk 0:01:37.3]} 21... Ba4 {[%clk 0:01:04.3]} 22. Qc1 {[%clk
0:01:13.6]} 22... Bxd1 {[%clk 0:01:04.5]} 23. Qxd1 {[%clk 0:01:14]} 23... Nxe4
{[%clk 0:01:04.9]} 24. Ba3 {[%clk 0:01:07.6]} 24... Rd8 {[%clk 0:00:46.5]} 25.
Qa4 {[%clk 0:01:05.4]} 25... Qd7 {[%clk 0:00:25.7]} 26. Qxe4 {[%clk 0:01:03.1]}
26... Ne7 {[%clk 0:00:18.7]} 27. Ne5 {[%clk 0:00:55.1]} 27... Qc7 {[%clk
0:00:12.9]} 28. Bd3 {[%clk 0:00:46.3]} 28... Ng6 {[%clk 0:00:03.7]} 29. Nxg6
{[%clk 0:00:37.6]} 29... hxg6 {[%clk 0:00:04.6]} 30. h4 {[%clk 0:00:37.5]} 30...
Rb8 {[%clk 0:00:04.1]} 31. h5 {[%clk 0:00:36.1]} 31... f5 {[%clk 0:00:02]} 32.
Qxe6+ {[%clk 0:00:35.7]} 32... Qf7 {[%clk 0:00:02.7]} 33. Qd6 {[%clk 0:00:25.4]}
33... Re8 {[%clk 0:00:02.2]} 34. hxg6 {[%clk 0:00:24.5]} 34... Qe6 {[%clk
0:00:02.8]} 35. Qxe6+ {[%clk 0:00:23.6]} 35... Rxe6 {[%clk 0:00:02.8]} 36. Bc4
{[%clk 0:00:24]} 36... f4 {[%clk 0:00:03.2]} 37. Bxe6+ {[%clk 0:00:23]} 37...
Kh8 {[%clk 0:00:03.2]} 38. gxf4 {[%clk 0:00:16.8]} 38... a4 {[%clk 0:00:03.6]}
39. Bf5 {[%clk 0:00:16.4]} 39... Kg8 {[%clk 0:00:03.5]} 40. Kg2 {[%clk
0:00:16.3]} 40... Kh8 {[%clk 0:00:04]} 41. Kf3 {[%clk 0:00:16.3]} 41... Kg8
{[%clk 0:00:04.7]} 42. Ke4 {[%clk 0:00:16.4]} 42... Kh8 {[%clk 0:00:05.6]} 43.
Ke5 {[%clk 0:00:16.4]} 43... Kg8 {[%clk 0:00:06.5]} 44. c4 {[%clk 0:00:15.8]}
44... Kh8 {[%clk 0:00:07.4]} 45. Be7 {[%clk 0:00:15.5]} 45... Kg8 {[%clk
0:00:08.3]} 46. c5 {[%clk 0:00:15.3]} 46... a3 {[%clk 0:00:08.7]} 47. bxa3
{[%clk 0:00:14.6]} 47... Kh8 {[%clk 0:00:09.2]} 48. c6 {[%clk 0:00:14.5]} 1-0

[Event "Late-Titled-Tuesday-Blitz-September-12-2023"]
[Site "Chess.com"]
[Date "2023.09.12"]
[Round "5"]
[White "mishanick"]
[Black "Zhigalko_Sergei"]
[Result "1-0"]
[WhiteElo "3066"]
[BlackElo "2873"]
[TimeControl "180+1"]
[EndTime "14:53:26 PDT"]
[Termination "mishanick won on time"]

1. d4 {[%clk 0:02:54.1]} 1... Nf6 {[%clk 0:03:00.1]} 2. c4 {[%clk 0:02:54]} 2...
e6 {[%clk 0:03:00.6]} 3. Nc3 {[%clk 0:02:54.2]} 3... Bb4 {[%clk 0:03:00.7]} 4.
e3 {[%clk 0:02:54.6]} 4... O-O {[%clk 0:02:59.8]} 5. Bd3 {[%clk 0:02:55]} 5...
d5 {[%clk 0:02:57]} 6. a3 {[%clk 0:02:54.9]} 6... Bxc3+ {[%clk 0:02:55.1]} 7.
bxc3 {[%clk 0:02:55.8]} 7... c5 {[%clk 0:02:46.8]} 8. Ne2 {[%clk 0:02:55.6]}
8... Nc6 {[%clk 0:02:44.8]} 9. O-O {[%clk 0:02:49.9]} 9... dxc4 {[%clk 0:02:37]}
10. Bxc4 {[%clk 0:02:50.8]} 10... e5 {[%clk 0:02:37.1]} 11. Bb2 {[%clk
0:02:35.5]} 11... Qc7 {[%clk 0:02:08.1]} 12. Ba2 {[%clk 0:02:14.9]} 12... Rd8
{[%clk 0:01:53.8]} 13. Rc1 {[%clk 0:01:24.3]} 13... b6 {[%clk 0:01:20]} 14. Qa4
{[%clk 0:01:10]} 14... Bb7 {[%clk 0:01:03]} 15. Rfd1 {[%clk 0:01:06.9]} 15...
Ne7 {[%clk 0:00:54.9]} 16. Ng3 {[%clk 0:01:05]} 16... Ng6 {[%clk 0:00:21.8]} 17.
f3 {[%clk 0:00:57.4]} 17... Rac8 {[%clk 0:00:18.3]} 18. e4 {[%clk 0:00:56.8]}
18... Nf4 {[%clk 0:00:13.9]} 19. Bc4 {[%clk 0:00:24.6]} 19... a6 {[%clk
0:00:11.2]} 20. dxe5 {[%clk 0:00:18]} 20... b5 {[%clk 0:00:04.6]} 21. Qc2 {[%clk
0:00:17.5]} 21... Qxe5 {[%clk 0:00:03.7]} 22. Bf1 {[%clk 0:00:18]} 22... c4
{[%clk 0:00:04.3]} 23. Qf2 {[%clk 0:00:17.7]} 23... h5 {[%clk 0:00:03.8]} 24. a4
{[%clk 0:00:14.8]} 24... g6 {[%clk 0:00:03.1]} 25. h4 {[%clk 0:00:14.1]} 25...
Kg7 {[%clk 0:00:02.9]} 26. axb5 {[%clk 0:00:14.1]} 26... axb5 {[%clk 0:00:03.8]}
27. Ba3 {[%clk 0:00:13.5]} 27... Kg8 {[%clk 0:00:03.2]} 28. Rxd8+ {[%clk
0:00:13.3]} 28... Rxd8 {[%clk 0:00:04.1]} 29. Bc5 {[%clk 0:00:13.8]} 29... Ne6
{[%clk 0:00:04.5]} 30. Be3 {[%clk 0:00:14]} 30... Qc7 {[%clk 0:00:04.2]} 31. Ne2
{[%clk 0:00:13.6]} 31... Rc8 {[%clk 0:00:03.2]} 32. Nd4 {[%clk 0:00:13.7]} 32...
Nxd4 {[%clk 0:00:02.9]} 33. Bxd4 {[%clk 0:00:14.6]} 33... Nd7 {[%clk 0:00:03.4]}
34. Qe3 {[%clk 0:00:14.6]} 34... Ne5 {[%clk 0:00:03.4]} 35. Qg5 {[%clk
0:00:13.8]} 35... Nc6 {[%clk 0:00:03.2]} 36. Bf6 {[%clk 0:00:13.5]} 36... Qd6
{[%clk 0:00:03]} 37. Rd1 {[%clk 0:00:10.1]} 37... Qf8 {[%clk 0:00:02.6]} 38.
Qxb5 {[%clk 0:00:07.9]} 38... Ba8 {[%clk 0:00:02.3]} 39. Qg5 {[%clk 0:00:08.1]}
39... Re8 {[%clk 0:00:02.2]} 40. Rd7 {[%clk 0:00:07.9]} 40... Qa3 {[%clk
0:00:01.3]} 41. Bxc4 {[%clk 0:00:07.5]} 41... Qf8 {[%clk 0:00:01.3]} 42. Rxf7
{[%clk 0:00:07.1]} 42... Qxf7 {[%clk 0:00:01.5]} 43. Qxg6+ {[%clk 0:00:07.1]}
1-0

[Event "Late-Titled-Tuesday-Blitz-September-12-2023"]
[Site "Chess.com"]
[Date "2023.09.12"]
[Round "5"]
[White "Korchmar_Vasiliy"]
[Black "Jospem"]
[Result "0-1"]
[WhiteElo "2697"]
[BlackElo "3095"]
[TimeControl "180+1"]
[EndTime "14:53:26 PDT"]
[Termination "Jospem won by resignation"]

1. e4 {[%clk 0:03:00.9]} 1... c5 {[%clk 0:02:47.8]} 2. d4 {[%clk 0:03:00.1]}
2... cxd4 {[%clk 0:02:47.9]} 3. Qxd4 {[%clk 0:03:01]} 3... Nc6 {[%clk
0:02:47.7]} 4. Qd3 {[%clk 0:03:01.7]} 4... Nf6 {[%clk 0:02:47.8]} 5. Nc3 {[%clk
0:03:01.7]} 5... d6 {[%clk 0:02:47.8]} 6. Nf3 {[%clk 0:03:01.6]} 6... e6 {[%clk
0:02:47.3]} 7. Bf4 {[%clk 0:03:00.9]} 7... e5 {[%clk 0:02:47.8]} 8. Bg5 {[%clk
0:03:00.8]} 8... Be6 {[%clk 0:02:47.6]} 9. O-O-O {[%clk 0:02:59.3]} 9... a6
{[%clk 0:02:42.7]} 10. Kb1 {[%clk 0:02:53.3]} 10... Rc8 {[%clk 0:02:37.7]} 11.
a3 {[%clk 0:02:33.4]} 11... h6 {[%clk 0:02:26.7]} 12. Bxf6 {[%clk 0:02:25.3]}
12... Qxf6 {[%clk 0:02:27.6]} 13. Nd5 {[%clk 0:02:25.7]} 13... Qd8 {[%clk
0:02:27.9]} 14. h4 {[%clk 0:02:17.8]} 14... Be7 {[%clk 0:02:24.4]} 15. g3 {[%clk
0:02:17.4]} 15... O-O {[%clk 0:02:21.9]} 16. Bh3 {[%clk 0:02:13.5]} 16... Re8
{[%clk 0:01:50.1]} 17. g4 {[%clk 0:01:12.8]} 17... Bxh4 {[%clk 0:00:47.7]} 18.
Nxh4 {[%clk 0:01:12.2]} 18... Qxh4 {[%clk 0:00:46.7]} 19. g5 {[%clk 0:01:12.7]}
19... Bxh3 {[%clk 0:00:40.6]} 20. gxh6 {[%clk 0:01:09.1]} 20... g6 {[%clk
0:00:34.6]} 21. Rxh3 {[%clk 0:01:06.5]} 21... Qd8 {[%clk 0:00:33.5]} 22. Rg1
{[%clk 0:00:47.8]} 22... Kh8 {[%clk 0:00:33.4]} 23. Qf3 {[%clk 0:00:37.7]} 23...
Rf8 {[%clk 0:00:33.7]} 24. c3 {[%clk 0:00:34.9]} 24... Nb8 {[%clk 0:00:26.1]}
25. Qg4 {[%clk 0:00:16.8]} 25... Nd7 {[%clk 0:00:23.3]} 26. f4 {[%clk
0:00:17.1]} 26... Nf6 {[%clk 0:00:21.2]} 27. Nxf6 {[%clk 0:00:11.1]} 27... Qxf6
{[%clk 0:00:22.1]} 28. f5 {[%clk 0:00:11.8]} 28... Rg8 {[%clk 0:00:10.9]} 29.
fxg6 {[%clk 0:00:11.8]} 29... fxg6 {[%clk 0:00:11.8]} 30. Rf3 {[%clk 0:00:08.8]}
30... Qe7 {[%clk 0:00:12.1]} 31. Rgf1 {[%clk 0:00:08.6]} 31... Rc7 {[%clk
0:00:09.8]} 32. Rf6 {[%clk 0:00:06.6]} 32... Qh7 {[%clk 0:00:10.3]} 33. Rxd6
{[%clk 0:00:05.1]} 33... Qxh6 {[%clk 0:00:10.7]} 34. Qf3 {[%clk 0:00:02.9]}
34... Qf4 {[%clk 0:00:08.7]} 35. Qh3+ {[%clk 0:00:02.1]} 35... Rh7 {[%clk
0:00:09.4]} 36. Qxh7+ {[%clk 0:00:01.6]} 36... Kxh7 {[%clk 0:00:10.3]} 37. Rxf4
{[%clk 0:00:02]} 37... exf4 {[%clk 0:00:11.2]} 38. Rf6 {[%clk 0:00:01.8]} 38...
g5 {[%clk 0:00:11.6]} 39. Kc1 {[%clk 0:00:02.3]} 39... Kg7 {[%clk 0:00:11.9]}
40. Rf5 {[%clk 0:00:02.2]} 40... Kg6 {[%clk 0:00:12.5]} 41. Kd1 {[%clk
0:00:02.9]} 41... Kh5 {[%clk 0:00:13]} 42. Ke2 {[%clk 0:00:03.3]} 42... Kg4
{[%clk 0:00:13.6]} 43. Rf7 {[%clk 0:00:03.1]} 43... Re8 {[%clk 0:00:14.1]} 44.
Kd3 {[%clk 0:00:03.2]} 44... Kf3 {[%clk 0:00:14.5]} 45. Kd4 {[%clk 0:00:01.9]}
45... Rxe4+ {[%clk 0:00:13.8]} 0-1

[Event "Late-Titled-Tuesday-Blitz-September-12-2023"]
[Site "Chess.com"]
[Date "2023.09.12"]
[Round "5"]
[White "Noki102"]
[Black "TatjanaVasilevich"]
[Result "0-1"]
[WhiteElo "2427"]
[BlackElo "2589"]
[TimeControl "180+1"]
[EndTime "14:53:26 PDT"]
[Termination "TatjanaVasilevich won by resignation"]

1. d4 {[%clk 0:02:59.3]} 1... Nf6 {[%clk 0:02:59.9]} 2. Nf3 {[%clk 0:02:59.3]}
2... e6 {[%clk 0:02:59.8]} 3. c4 {[%clk 0:02:58.8]} 3... Bb4+ {[%clk 0:02:59.4]}
4. Nbd2 {[%clk 0:02:58.1]} 4... O-O {[%clk 0:02:58.6]} 5. a3 {[%clk 0:02:57.7]}
5... Bxd2+ {[%clk 0:02:57.1]} 6. Qxd2 {[%clk 0:02:58.6]} 6... b6 {[%clk
0:02:57]} 7. g3 {[%clk 0:02:58.4]} 7... Ba6 {[%clk 0:02:57.1]} 8. Qc2 {[%clk
0:02:57.3]} 8... c5 {[%clk 0:02:53.3]} 9. dxc5 {[%clk 0:02:47.5]} 9... bxc5
{[%clk 0:02:53.6]} 10. Bg2 {[%clk 0:02:48]} 10... Nc6 {[%clk 0:02:53.3]} 11. Bf4
{[%clk 0:02:45.7]} 11... Qe7 {[%clk 0:02:50.6]} 12. O-O {[%clk 0:02:44.3]} 12...
Rfd8 {[%clk 0:02:43.2]} 13. Rac1 {[%clk 0:02:36.4]} 13... Rac8 {[%clk
0:02:40.4]} 14. Rfd1 {[%clk 0:02:14.1]} 14... d6 {[%clk 0:02:39.1]} 15. h3
{[%clk 0:02:01.8]} 15... h6 {[%clk 0:02:38.9]} 16. g4 {[%clk 0:02:01.7]} 16...
e5 {[%clk 0:02:37.8]} 17. Bg3 {[%clk 0:02:00.3]} 17... e4 {[%clk 0:02:36.4]} 18.
Nh4 {[%clk 0:01:59.3]} 18... Nd4 {[%clk 0:02:36.5]} 19. Nf5 {[%clk 0:01:49.7]}
19... Nxf5 {[%clk 0:02:29.5]} 20. gxf5 {[%clk 0:01:50.6]} 20... e3 {[%clk
0:02:24.1]} 21. fxe3 {[%clk 0:01:35.9]} 21... Qxe3+ {[%clk 0:02:23.5]} 22. Bf2
{[%clk 0:01:36.3]} 22... Qe7 {[%clk 0:02:20.3]} 23. Kh1 {[%clk 0:01:25.8]} 23...
Bb7 {[%clk 0:02:18.4]} 24. Rg1 {[%clk 0:01:19.7]} 24... Bxg2+ {[%clk 0:02:14]}
25. Rxg2 {[%clk 0:01:19.7]} 25... Kh7 {[%clk 0:01:56.8]} 26. Rcg1 {[%clk
0:01:17.5]} 26... Rg8 {[%clk 0:01:56.6]} 27. Bh4 {[%clk 0:01:13.8]} 27... Qe5
{[%clk 0:01:54.9]} 28. Bxf6 {[%clk 0:01:02.5]} 28... Qxf6 {[%clk 0:01:54.8]} 29.
Qe4 {[%clk 0:00:57.8]} 29... Rce8 {[%clk 0:01:52.7]} 30. Rxg7+ {[%clk
0:00:54.9]} 30... Rxg7 {[%clk 0:01:36.7]} 31. Rxg7+ {[%clk 0:00:53.6]} 31...
Kxg7 {[%clk 0:01:37.4]} 32. Qxe8 {[%clk 0:00:52.6]} 32... Qxf5 {[%clk
0:01:37.1]} 33. Kg2 {[%clk 0:00:36.3]} 33... Qg5+ {[%clk 0:01:32.6]} 34. Kf3
{[%clk 0:00:30.9]} 34... Qf5+ {[%clk 0:01:32.1]} 35. Kg2 {[%clk 0:00:30.2]}
35... Qc2 {[%clk 0:01:31.2]} 36. Qe3 {[%clk 0:00:21.4]} 36... Qxc4 {[%clk
0:01:30.7]} 37. Qg3+ {[%clk 0:00:21.6]} 37... Kh7 {[%clk 0:01:29.8]} 38. Qxd6
{[%clk 0:00:20.8]} 38... Qxe2+ {[%clk 0:01:29.8]} 39. Kg3 {[%clk 0:00:21.1]}
39... Qxb2 {[%clk 0:01:27.8]} 40. Qxc5 {[%clk 0:00:19.8]} 40... Qg7+ {[%clk
0:01:26.9]} 41. Kf4 {[%clk 0:00:19.6]} 41... Qf6+ {[%clk 0:01:27]} 42. Kg4
{[%clk 0:00:17]} 42... Qe6+ {[%clk 0:01:20.6]} 43. Kf4 {[%clk 0:00:16.4]} 43...
a6 {[%clk 0:01:20.7]} 44. h4 {[%clk 0:00:12.2]} 44... Qf6+ {[%clk 0:01:17.1]}
45. Qf5+ {[%clk 0:00:07.4]} 45... Kg7 {[%clk 0:01:12.7]} 46. h5 {[%clk
0:00:05.8]} 46... Qxf5+ {[%clk 0:01:03.5]} 47. Kxf5 {[%clk 0:00:06]} 47... Kg8
{[%clk 0:01:04.2]} 48. Kf6 {[%clk 0:00:06]} 48... Kf8 {[%clk 0:01:04.4]} 49. Ke5
{[%clk 0:00:04.2]} 49... Ke7 {[%clk 0:01:01.1]} 50. Kf5 {[%clk 0:00:04.6]} 50...
a5 {[%clk 0:01:01.6]} 51. a4 {[%clk 0:00:04.8]} 51... Ke8 {[%clk 0:00:56.7]} 52.
Kf6 {[%clk 0:00:05.7]} 52... Kf8 {[%clk 0:00:57.1]} 53. Kf5 {[%clk 0:00:04.8]}
53... Ke7 {[%clk 0:00:57.5]} 54. Ke5 {[%clk 0:00:04.9]} 54... f6+ {[%clk
0:00:58]} 55. Kf5 {[%clk 0:00:05.3]} 55... Kf7 {[%clk 0:00:58.6]} 56. Kf4 {[%clk
0:00:03]} 56... Ke6 {[%clk 0:00:59.2]} 57. Ke4 {[%clk 0:00:03.7]} 57... f5+
{[%clk 0:00:59.4]} 58. Kf4 {[%clk 0:00:03.9]} 58... Kf6 {[%clk 0:00:59.8]} 59.
Ke3 {[%clk 0:00:03.2]} 59... Kg5 {[%clk 0:01:00.2]} 60. Kd4 {[%clk 0:00:03.8]}
60... f4 {[%clk 0:01:00.7]} 61. Kc5 {[%clk 0:00:04.7]} 61... f3 {[%clk
0:01:00.6]} 62. Kb5 {[%clk 0:00:05.6]} 62... f2 {[%clk 0:01:01.2]} 0-1

[Event "Late-Titled-Tuesday-Blitz-September-12-2023"]
[Site "Chess.com"]
[Date "2023.09.12"]
[Round "5"]
[White "only_strong_moves"]
[Black "santosalberto1987"]
[Result "0-1"]
[WhiteElo "2491"]
[BlackElo "2537"]
[TimeControl "180+1"]
[EndTime "14:53:26 PDT"]
[Termination "santosalberto1987 won by resignation"]

1. d4 {[%clk 0:02:57]} 1... d5 {[%clk 0:01:28.8]} 2. Nc3 {[%clk 0:02:54.7]} 2...
Nf6 {[%clk 0:01:28.6]} 3. Bf4 {[%clk 0:02:55.2]} 3... e6 {[%clk 0:01:27.7]} 4.
Nb5 {[%clk 0:02:54.3]} 4... Bb4+ {[%clk 0:01:28.1]} 5. c3 {[%clk 0:02:53.9]}
5... Ba5 {[%clk 0:01:29]} 6. e3 {[%clk 0:02:49.4]} 6... O-O {[%clk 0:01:27.8]}
7. Nf3 {[%clk 0:02:49.2]} 7... a6 {[%clk 0:01:27.1]} 8. Na3 {[%clk 0:02:49.4]}
8... Bb6 {[%clk 0:01:25.5]} 9. b4 {[%clk 0:02:46.2]} 9... a5 {[%clk 0:01:24.2]}
10. Nc2 {[%clk 0:02:46]} 10... axb4 {[%clk 0:01:24.2]} 11. cxb4 {[%clk
0:02:46.9]} 11... Bd7 {[%clk 0:01:22.7]} 12. Bd3 {[%clk 0:02:46.8]} 12... Ba4
{[%clk 0:01:22.7]} 13. O-O {[%clk 0:02:46.3]} 13... Nc6 {[%clk 0:01:22.9]} 14.
a3 {[%clk 0:02:42.6]} 14... Nh5 {[%clk 0:01:18.3]} 15. Bxh7+ {[%clk 0:02:29.6]}
15... Kxh7 {[%clk 0:01:16.5]} 16. Ng5+ {[%clk 0:02:30.2]} 16... Kg6 {[%clk
0:01:16]} 17. Qd3+ {[%clk 0:02:30.8]} 17... f5 {[%clk 0:01:12.9]} 18. Nxe6
{[%clk 0:02:31]} 18... Qd7 {[%clk 0:01:11]} 19. Nxf8+ {[%clk 0:02:30.5]} 19...
Rxf8 {[%clk 0:01:11.9]} 20. Bg3 {[%clk 0:02:14.5]} 20... Nxg3 {[%clk 0:01:11.6]}
21. fxg3 {[%clk 0:02:14]} 21... Qe6 {[%clk 0:01:06.4]} 22. g4 {[%clk 0:02:12.5]}
22... Qe4 {[%clk 0:01:05.3]} 23. Qxe4 {[%clk 0:02:07.7]} 23... fxe4 {[%clk
0:01:04.3]} 24. Rxf8 {[%clk 0:02:07.2]} 24... Bxc2 {[%clk 0:01:03.5]} 25. h4
{[%clk 0:01:59.3]} 25... Nxd4 {[%clk 0:01:03.1]} 26. Raf1 {[%clk 0:01:42.9]}
26... Ne6 {[%clk 0:01:00.1]} 27. Rb8 {[%clk 0:01:31.5]} 27... Bxe3+ {[%clk
0:00:59.7]} 28. Kh1 {[%clk 0:01:30.6]} 28... d4 {[%clk 0:00:58.7]} 29. Re8
{[%clk 0:01:18.2]} 29... Nf4 {[%clk 0:00:51.1]} 30. g3 {[%clk 0:01:14]} 30...
Nd5 {[%clk 0:00:49.8]} 31. Rf5 {[%clk 0:01:12.5]} 31... c6 {[%clk 0:00:43.1]}
32. Rh8 {[%clk 0:01:10.4]} 32... Nf6 {[%clk 0:00:40.7]} 33. h5+ {[%clk
0:01:05.5]} 33... Kf7 {[%clk 0:00:39.9]} 34. g5 {[%clk 0:00:57.2]} 34... Bxg5
{[%clk 0:00:39.8]} 35. Rxg5 {[%clk 0:00:54.5]} 35... d3 {[%clk 0:00:38.5]} 36.
Rd8 {[%clk 0:00:52.7]} 36... e3 {[%clk 0:00:37.9]} 37. Kg2 {[%clk 0:00:43.1]}
37... d2 {[%clk 0:00:37.7]} 38. Kf3 {[%clk 0:00:39.6]} 38... Nd5 {[%clk
0:00:33.7]} 39. Rdxd5 {[%clk 0:00:23.5]} 39... cxd5 {[%clk 0:00:33.4]} 40. Rxd5
{[%clk 0:00:23.7]} 40... d1=Q+ {[%clk 0:00:33.2]} 41. Rxd1 {[%clk 0:00:24.4]}
41... Bxd1+ {[%clk 0:00:33.6]} 42. Kxe3 {[%clk 0:00:25.3]} 42... Bxh5 {[%clk
0:00:33.8]} 43. a4 {[%clk 0:00:24.7]} 43... Bd1 {[%clk 0:00:32.7]} 44. a5 {[%clk
0:00:24.2]} 44... Ba4 {[%clk 0:00:33.6]} 45. Kd4 {[%clk 0:00:24.2]} 45... Kf6
{[%clk 0:00:33.6]} 46. Kc5 {[%clk 0:00:24.5]} 46... Bc6 {[%clk 0:00:32.1]} 47.
b5 {[%clk 0:00:24.2]} 47... Bf3 {[%clk 0:00:32.1]} 48. Kd4 {[%clk 0:00:18.4]}
48... Kg5 {[%clk 0:00:31.9]} 49. Ke3 {[%clk 0:00:19]} 49... Kg4 {[%clk
0:00:31.9]} 50. Kf2 {[%clk 0:00:19.1]} 50... Bd5 {[%clk 0:00:31.9]} 51. b6
{[%clk 0:00:19.4]} 51... Bc4 {[%clk 0:00:30.8]} 52. Kg2 {[%clk 0:00:18.8]} 52...
Bd5+ {[%clk 0:00:30.6]} 53. Kh2 {[%clk 0:00:19.5]} 53... g5 {[%clk 0:00:30.2]}
54. Kg1 {[%clk 0:00:19.5]} 54... Kxg3 {[%clk 0:00:30.3]} 55. Kf1 {[%clk
0:00:20.4]} 55... g4 {[%clk 0:00:30.5]} 56. Kg1 {[%clk 0:00:21.3]} 56... Bc6
{[%clk 0:00:30.3]} 57. Kf1 {[%clk 0:00:22.2]} 57... Kh2 {[%clk 0:00:30.5]} 58.
Kf2 {[%clk 0:00:22.8]} 58... g3+ {[%clk 0:00:30.7]} 59. Ke3 {[%clk 0:00:23.7]}
59... g2 {[%clk 0:00:31.2]} 60. Kd4 {[%clk 0:00:24.6]} 60... g1=Q+ {[%clk
0:00:31.6]} 61. Ke5 {[%clk 0:00:25.5]} 61... Qc5+ {[%clk 0:00:31.4]} 62. Ke6
{[%clk 0:00:25.2]} 62... Qxa5 {[%clk 0:00:31.7]} 0-1